[Event "Live Chess"]
[Site "Chess.com"]
[Date "2023.05.21"]
[Round "-"]
[White "Hussamalhaidar"]
[Black "grillage"]
[Result "0-1"]
[WhiteElo "1113"]
[BlackElo "1809"]
[TimeControl "300"]
[EndTime "18:42:41 PDT"]
[Termination "grillage won by resignation"]

1. b3 {[%clk 0:04:57.8]} 1... d5 {[%clk 0:04:56]} 2. Bb2 {[%clk 0:04:56.6]} 2...
Nf6 {[%clk 0:04:55.5]} 3. Bxf6 {[%clk 0:04:53.5]} 3... exf6 {[%clk 0:04:54]} 4.
d4 {[%clk 0:04:49]} 4... Bf5 {[%clk 0:04:46.6]} 5. Nf3 {[%clk 0:04:42.1]} 5...
Nc6 {[%clk 0:04:44.9]} 6. e3 {[%clk 0:04:39.8]} 6... Bd6 {[%clk 0:04:31.8]} 7.
Bb5 {[%clk 0:04:35.5]} 7... O-O {[%clk 0:04:29.6]} 8. Bxc6 {[%clk 0:04:31.8]}
8... bxc6 {[%clk 0:04:28.1]} 9. O-O {[%clk 0:04:30.4]} 9... Re8 {[%clk
0:04:22.9]} 10. Nh4 {[%clk 0:04:26.8]} 10... Be4 {[%clk 0:04:15.1]} 11. f3
{[%clk 0:04:22]} 11... Bg6 {[%clk 0:04:13.6]} 12. Nxg6 {[%clk 0:04:20.3]} 12...
fxg6 {[%clk 0:04:12.8]} 13. Nd2 {[%clk 0:04:06.6]} 13... Rxe3 {[%clk 0:04:09.8]}
14. c4 {[%clk 0:04:01.6]} 14... Qe8 {[%clk 0:03:58.9]} 15. Re1 {[%clk
0:03:51.8]} 15... Bb4 {[%clk 0:03:46.8]} 16. Rxe3 {[%clk 0:03:29.3]} 16... Qxe3+
{[%clk 0:03:44.7]} 17. Kh1 {[%clk 0:03:22.4]} 17... Qxd2 {[%clk 0:03:42.8]} 18.
Qxd2 {[%clk 0:03:18.1]} 18... Bxd2 {[%clk 0:03:41.6]} 19. cxd5 {[%clk
0:03:16.2]} 19... cxd5 {[%clk 0:03:40.1]} 20. Rd1 {[%clk 0:03:10.8]} 20... Bf4
{[%clk 0:03:36.7]} 21. g3 {[%clk 0:03:09.2]} 21... Bd6 {[%clk 0:03:35.3]} 22. f4
{[%clk 0:03:06.5]} 22... Kf7 {[%clk 0:03:33.6]} 23. h3 {[%clk 0:03:05.4]} 23...
Re8 {[%clk 0:03:32.2]} 24. Kg2 {[%clk 0:03:04]} 24... Re2+ {[%clk 0:03:30.9]}
25. Kf3 {[%clk 0:03:01.3]} 25... Rxa2 {[%clk 0:03:29.9]} 26. Rd3 {[%clk
0:02:56.1]} 26... a5 {[%clk 0:03:24.7]} 0-1

[Event "Live Chess"]
[Site "Chess.com"]
[Date "2023.05.21"]
[Round "-"]
[White "Biranidun"]
[Black "Long1968"]
[Result "1-0"]
[WhiteElo "2580"]
[BlackElo "1056"]
[TimeControl "300"]
[EndTime "18:42:53 PDT"]
[Termination "Biranidun won by resignation"]

1. e4 {[%clk 0:04:58.7]} 1... e6 {[%clk 0:04:55.6]} 2. d4 {[%clk 0:04:57.8]}
2... d5 {[%clk 0:04:53.6]} 3. e5 {[%clk 0:04:57.3]} 3... c5 {[%clk 0:04:51.4]}
4. c3 {[%clk 0:04:56.7]} 4... Nc6 {[%clk 0:04:47.9]} 5. Nf3 {[%clk 0:04:55.9]}
5... b6 {[%clk 0:04:42.6]} 6. Bd3 {[%clk 0:04:54]} 6... cxd4 {[%clk 0:04:38.7]}
7. cxd4 {[%clk 0:04:52.9]} 7... Qc7 {[%clk 0:04:35.4]} 8. Nc3 {[%clk 0:04:51.6]}
8... a6 {[%clk 0:04:30.7]} 9. O-O {[%clk 0:04:50.6]} 9... Be7 {[%clk 0:04:22.3]}
10. Be3 {[%clk 0:04:49.8]} 10... f6 {[%clk 0:04:14.6]} 11. Rc1 {[%clk
0:04:48.9]} 11... fxe5 {[%clk 0:04:04.8]} 12. dxe5 {[%clk 0:04:48.5]} 12... Nxe5
{[%clk 0:03:57.8]} 13. Nxd5 {[%clk 0:04:47.7]} 13... Nxf3+ {[%clk 0:03:31.3]}
14. Qxf3 {[%clk 0:04:47.6]} 14... Qb7 {[%clk 0:03:25.3]} 15. Nc7+ {[%clk
0:04:43.7]} 15... Kd7 {[%clk 0:03:05.1]} 16. Be4 {[%clk 0:04:42.6]} 1-0

[Event "Live Chess"]
[Site "Chess.com"]
[Date "2023.05.21"]
[Round "-"]
[White "KeithArkell"]
[Black "wot-not"]
[Result "1-0"]
[WhiteElo "2573"]
[BlackElo "1542"]
[TimeControl "300"]
[EndTime "18:43:05 PDT"]
[Termination "KeithArkell won by resignation"]

1. d4 {[%clk 0:04:57.3]} 1... Nf6 {[%clk 0:04:56.3]} 2. Nf3 {[%clk 0:04:56.4]}
2... g6 {[%clk 0:04:53.8]} 3. c4 {[%clk 0:04:55.5]} 3... d5 {[%clk 0:04:52.3]}
4. cxd5 {[%clk 0:04:54.2]} 4... Nxd5 {[%clk 0:04:50.9]} 5. Nc3 {[%clk
0:04:53.9]} 5... Nxc3 {[%clk 0:04:49.6]} 6. bxc3 {[%clk 0:04:53.5]} 6... Bg7
{[%clk 0:04:47.7]} 7. g3 {[%clk 0:04:52.8]} 7... O-O {[%clk 0:04:46.7]} 8. Bg2
{[%clk 0:04:52.2]} 8... c5 {[%clk 0:04:46.1]} 9. O-O {[%clk 0:04:51.5]} 9...
cxd4 {[%clk 0:04:45.4]} 10. cxd4 {[%clk 0:04:51.4]} 10... Nc6 {[%clk 0:04:42.8]}
11. e3 {[%clk 0:04:50.8]} 11... Bg4 {[%clk 0:04:40.3]} 12. h3 {[%clk 0:04:49.6]}
12... Bd7 {[%clk 0:04:38.1]} 13. Bb2 {[%clk 0:04:46.6]} 13... Qc8 {[%clk
0:04:36.4]} 14. Kh2 {[%clk 0:04:45.7]} 14... Be6 {[%clk 0:04:23.2]} 15. Qa4
{[%clk 0:04:40.9]} 15... Bd5 {[%clk 0:04:06.2]} 16. Rfc1 {[%clk 0:04:38.1]}
16... e5 {[%clk 0:03:56.9]} 17. Nxe5 {[%clk 0:04:34.2]} 17... Bxe5 {[%clk
0:03:55.1]} 18. dxe5 {[%clk 0:04:33]} 18... Bxg2 {[%clk 0:03:53.8]} 19. Kxg2
{[%clk 0:04:32.6]} 19... Qf5 {[%clk 0:03:40.9]} 20. Qf4 {[%clk 0:04:28.9]} 20...
Qxf4 {[%clk 0:03:37.3]} 21. gxf4 {[%clk 0:04:28.8]} 21... Rad8 {[%clk
0:03:27.6]} 22. Rc4 {[%clk 0:04:19.4]} 22... Rd2 {[%clk 0:03:13.5]} 23. Bc1
{[%clk 0:04:16.6]} 23... Rd7 {[%clk 0:03:08.8]} 24. Rb1 {[%clk 0:04:15.3]} 24...
Na5 {[%clk 0:02:58.5]} 25. Rc2 {[%clk 0:04:12.1]} 25... b6 {[%clk 0:02:52.5]}
26. Ba3 {[%clk 0:04:10.1]} 26... Rfd8 {[%clk 0:02:47.6]} 27. Bb4 {[%clk
0:04:09]} 27... Nb7 {[%clk 0:02:45.7]} 28. Rbc1 {[%clk 0:04:05.8]} 28... Kg7
{[%clk 0:02:34.1]} 29. Rc7 {[%clk 0:04:03.7]} 29... Na5 {[%clk 0:02:27.1]} 30.
Bxa5 {[%clk 0:04:02]} 30... bxa5 {[%clk 0:02:26.2]} 31. Rxd7 {[%clk 0:03:59.9]}
31... Rxd7 {[%clk 0:02:25.2]} 32. Rc5 {[%clk 0:03:59.3]} 32... f6 {[%clk
0:02:04.3]} 33. exf6+ {[%clk 0:03:57.4]} 33... Kxf6 {[%clk 0:02:03.5]} 34. Rxa5
{[%clk 0:03:56.6]} 34... h5 {[%clk 0:02:01.5]} 35. h4 {[%clk 0:03:55.1]} 35...
Rc7 {[%clk 0:01:49.9]} 36. Ra6+ {[%clk 0:03:53.9]} 36... Kf5 {[%clk 0:01:48.3]}
37. Kf3 {[%clk 0:03:53.2]} 37... Rc3 {[%clk 0:01:37.1]} 38. Ra5+ {[%clk
0:03:51.6]} 38... Kf6 {[%clk 0:01:35.7]} 39. Rxa7 {[%clk 0:03:50.8]} 1-0

[Event "Live Chess"]
[Site "Chess.com"]
[Date "2023.05.21"]
[Round "-"]
[White "Duke_of_Bebington"]
[Black "Tushinskiy"]
[Result "0-1"]
[WhiteElo "1581"]
[BlackElo "2178"]
[TimeControl "300"]
[EndTime "18:43:54 PDT"]
[Termination "Tushinskiy won by resignation"]

1. e4 {[%clk 0:04:57.2]} 1... e5 {[%clk 0:04:58.7]} 2. Nf3 {[%clk 0:04:55.6]}
2... d6 {[%clk 0:04:58.6]} 3. d4 {[%clk 0:04:53.9]} 3... Bg4 {[%clk 0:04:56.1]}
4. Be2 {[%clk 0:04:50.4]} 4... Nd7 {[%clk 0:04:54.1]} 5. Nc3 {[%clk 0:04:40.9]}
5... Ngf6 {[%clk 0:04:50.5]} 6. Be3 {[%clk 0:04:38.7]} 6... c6 {[%clk
0:04:48.8]} 7. h3 {[%clk 0:04:35.9]} 7... Bh5 {[%clk 0:04:47.1]} 8. Qd2 {[%clk
0:04:32.6]} 8... Qc7 {[%clk 0:04:45.5]} 9. O-O-O {[%clk 0:04:25.6]} 9... Be7
{[%clk 0:04:42.5]} 10. Kb1 {[%clk 0:04:21]} 10... a5 {[%clk 0:04:37.3]} 11. dxe5
{[%clk 0:04:15.2]} 11... dxe5 {[%clk 0:04:35.9]} 12. Bg5 {[%clk 0:04:07.7]}
12... Nc5 {[%clk 0:04:30.3]} 13. Bxf6 {[%clk 0:03:40.9]} 13... Bxf6 {[%clk
0:04:11.1]} 14. Bd3 {[%clk 0:03:34]} 14... O-O {[%clk 0:04:02]} 15. g4 {[%clk
0:03:20.3]} 15... Bg6 {[%clk 0:04:00.2]} 16. h4 {[%clk 0:03:18.5]} 16... Rad8
{[%clk 0:03:57.1]} 17. Qe2 {[%clk 0:03:13.5]} 17... h5 {[%clk 0:03:51.5]} 18. g5
{[%clk 0:03:00]} 18... Be7 {[%clk 0:03:49.5]} 19. Ne1 {[%clk 0:02:58.6]} 19...
b5 {[%clk 0:03:47.6]} 20. Ng2 {[%clk 0:02:28.6]} 20... b4 {[%clk 0:03:38.3]} 0-1

[Event "Live Chess"]
[Site "Chess.com"]
[Date "2023.05.21"]
[Round "-"]
[White "Missedidea"]
[Black "GMHarry-youtube"]
[Result "1-0"]
[WhiteElo "1843"]
[BlackElo "2040"]
[TimeControl "300"]
[EndTime "18:43:58 PDT"]
[Termination "Missedidea won by checkmate"]

1. d4 {[%clk 0:04:58.3]} 1... Nf6 {[%clk 0:04:58.8]} 2. c4 {[%clk 0:04:56.5]}
2... g6 {[%clk 0:04:57.6]} 3. Nc3 {[%clk 0:04:55.3]} 3... d5 {[%clk 0:04:57.2]}
4. cxd5 {[%clk 0:04:53.4]} 4... Nxd5 {[%clk 0:04:57.1]} 5. e4 {[%clk 0:04:52.3]}
5... Nxc3 {[%clk 0:04:56.6]} 6. bxc3 {[%clk 0:04:51.5]} 6... Bg7 {[%clk
0:04:56.3]} 7. Bc4 {[%clk 0:04:49.9]} 7... c5 {[%clk 0:04:55.7]} 8. Ne2 {[%clk
0:04:48.3]} 8... Nc6 {[%clk 0:04:50.1]} 9. O-O {[%clk 0:04:45.9]} 9... cxd4
{[%clk 0:04:49.3]} 10. cxd4 {[%clk 0:04:43.9]} 10... Nxd4 {[%clk 0:04:48.8]} 11.
Rb1 {[%clk 0:04:34.6]} 11... Nxe2+ {[%clk 0:04:46.6]} 12. Qxe2 {[%clk
0:04:32.9]} 12... O-O {[%clk 0:04:43]} 13. Bg5 {[%clk 0:04:21.7]} 13... h6
{[%clk 0:04:39.7]} 14. Rfd1 {[%clk 0:04:17]} 14... Qc7 {[%clk 0:04:36.4]} 15.
Bh4 {[%clk 0:03:55.4]} 15... Bg4 {[%clk 0:04:20.2]} 16. f3 {[%clk 0:03:48.3]}
16... Qc5+ {[%clk 0:04:13.3]} 17. Bf2 {[%clk 0:03:46]} 17... Bxf3 {[%clk
0:04:03.2]} 18. gxf3 {[%clk 0:03:42.5]} 18... Qg5+ {[%clk 0:04:01.5]} 19. Kh1
{[%clk 0:03:38]} 19... Be5 {[%clk 0:03:55.4]} 20. Be3 {[%clk 0:03:33.7]} 20...
Qh5 {[%clk 0:03:53.7]} 21. f4 {[%clk 0:03:27.5]} 21... Qxe2 {[%clk 0:03:47.8]}
22. Bxe2 {[%clk 0:03:25.1]} 22... Bf6 {[%clk 0:03:47.3]} 23. e5 {[%clk
0:03:22.9]} 23... Bg7 {[%clk 0:03:44.5]} 24. Rxb7 {[%clk 0:03:18.1]} 24... e6
{[%clk 0:03:42.4]} 25. Rdd7 {[%clk 0:03:15.3]} 25... Rab8 {[%clk 0:03:36.9]} 26.
Kg2 {[%clk 0:03:12.7]} 26... Rxb7 {[%clk 0:03:35.2]} 27. Rxb7 {[%clk 0:03:10.7]}
27... Rc8 {[%clk 0:03:33.3]} 28. Kf3 {[%clk 0:03:06.8]} 28... Rc3 {[%clk
0:03:22.6]} 29. Ke4 {[%clk 0:02:59.7]} 29... g5 {[%clk 0:03:15]} 30. Rxa7 {[%clk
0:02:49.1]} 30... Bh8 {[%clk 0:02:59.3]} 31. Bd3 {[%clk 0:02:38.6]} 31... gxf4
{[%clk 0:02:49.8]} 32. Bxf4 {[%clk 0:02:32]} 32... Kg7 {[%clk 0:02:42.4]} 33.
Ra8 {[%clk 0:02:27.3]} 33... Rc6 {[%clk 0:01:56]} 34. a4 {[%clk 0:02:24.2]}
34... Kh7 {[%clk 0:01:45.5]} 35. a5 {[%clk 0:02:20.6]} 35... f5+ {[%clk
0:01:37.9]} 36. exf6 {[%clk 0:02:17.9]} 36... Bxf6 {[%clk 0:01:37.3]} 37. a6
{[%clk 0:02:13.2]} 37... e5 {[%clk 0:01:36]} 38. Be3 {[%clk 0:02:10.8]} 38...
Rc3 {[%clk 0:01:29.5]} 39. a7 {[%clk 0:02:06.6]} 39... Ra3 {[%clk 0:01:28.1]}
40. Rf8 {[%clk 0:01:57.1]} 40... Bd8 {[%clk 0:00:55.4]} 41. Rxd8 {[%clk
0:01:51.7]} 41... Ra4+ {[%clk 0:00:54]} 42. Kxe5+ {[%clk 0:01:48.1]} 42... Kg7
{[%clk 0:00:52.3]} 43. Bd4 {[%clk 0:01:42.9]} 43... h5 {[%clk 0:00:49.1]} 44.
Rd7+ {[%clk 0:01:40]} 44... Kh6 {[%clk 0:00:46.7]} 45. Be3+ {[%clk 0:01:36.6]}
45... Rf4 {[%clk 0:00:44.1]} 46. Bxf4# {[%clk 0:01:34.9]} 1-0

[Event "Live Chess"]
[Site "Chess.com"]
[Date "2023.05.21"]
[Round "-"]
[White "jimwad"]
[Black "ViktorTheCoolBoy"]
[Result "0-1"]
[WhiteElo "1216"]
[BlackElo "2513"]
[TimeControl "300"]
[EndTime "18:43:58 PDT"]
[Termination "ViktorTheCoolBoy won by checkmate"]

1. d4 {[%clk 0:04:57.6]} 1... e6 {[%clk 0:04:59.3]} 2. e4 {[%clk 0:04:55.2]}
2... c5 {[%clk 0:04:58.6]} 3. dxc5 {[%clk 0:04:53.8]} 3... Bxc5 {[%clk
0:04:57.1]} 4. Nf3 {[%clk 0:04:51.8]} 4... Nf6 {[%clk 0:04:56.3]} 5. Bd3 {[%clk
0:04:50.8]} 5... O-O {[%clk 0:04:54.8]} 6. O-O {[%clk 0:04:49.6]} 6... d5 {[%clk
0:04:54.1]} 7. exd5 {[%clk 0:04:48.2]} 7... Qxd5 {[%clk 0:04:52.1]} 8. Nc3
{[%clk 0:04:43.8]} 8... Qh5 {[%clk 0:04:51.5]} 9. h3 {[%clk 0:04:23.6]} 9... Nc6
{[%clk 0:04:49]} 10. Ne4 {[%clk 0:04:21.1]} 10... Nxe4 {[%clk 0:04:43.3]} 11.
Bxe4 {[%clk 0:04:19.9]} 11... Ne7 {[%clk 0:04:35.8]} 12. Be3 {[%clk 0:04:16.4]}
12... Bxe3 {[%clk 0:04:33.7]} 13. fxe3 {[%clk 0:04:15.3]} 13... Qc5 {[%clk
0:04:33.6]} 14. Qd3 {[%clk 0:04:09.2]} 14... Nc6 {[%clk 0:04:31]} 15. Bxc6
{[%clk 0:04:06.4]} 15... Qxc6 {[%clk 0:04:29.5]} 16. Kh1 {[%clk 0:04:05.4]}
16... Qc7 {[%clk 0:04:28.1]} 17. Rac1 {[%clk 0:03:56.2]} 17... Rd8 {[%clk
0:04:24.3]} 18. Qe2 {[%clk 0:03:53]} 18... h6 {[%clk 0:04:23]} 19. c3 {[%clk
0:03:41.9]} 19... b6 {[%clk 0:04:21.4]} 20. Nd4 {[%clk 0:03:37.7]} 20... Bb7
{[%clk 0:04:20.1]} 21. Qf2 {[%clk 0:03:35.9]} 21... Qe7 {[%clk 0:04:16]} 22.
Rfd1 {[%clk 0:03:26.1]} 22... Rd5 {[%clk 0:04:11.2]} 23. Nf3 {[%clk 0:03:23.8]}
23... Rh5 {[%clk 0:04:08.4]} 24. Rd4 {[%clk 0:03:12.8]} 24... e5 {[%clk
0:04:03.1]} 25. Rd2 {[%clk 0:03:05.3]} 25... Qf6 {[%clk 0:03:50.2]} 26. Rf1
{[%clk 0:03:02.4]} 26... g5 {[%clk 0:03:42.1]} 27. Nh2 {[%clk 0:02:56.1]} 27...
Qxf2 {[%clk 0:03:39]} 28. Rfxf2 {[%clk 0:02:54.5]} 28... Rxh3 {[%clk 0:03:35]}
29. Kg1 {[%clk 0:02:39.4]} 29... Rxe3 {[%clk 0:03:33.1]} 30. Ng4 {[%clk
0:02:33.3]} 30... Re1+ {[%clk 0:03:31.3]} 31. Rf1 {[%clk 0:02:32]} 31... Rxf1+
{[%clk 0:03:30.6]} 32. Kxf1 {[%clk 0:02:31]} 32... Kg7 {[%clk 0:03:28.6]} 33.
Nxe5 {[%clk 0:02:29.7]} 33... Re8 {[%clk 0:03:25.8]} 34. Nf3 {[%clk 0:02:23.2]}
34... Bxf3 {[%clk 0:03:23.9]} 35. gxf3 {[%clk 0:02:22.2]} 35... Kf6 {[%clk
0:03:22]} 36. Kf2 {[%clk 0:02:21.1]} 36... Re7 {[%clk 0:03:19.6]} 37. Rd1 {[%clk
0:02:19.6]} 37... h5 {[%clk 0:03:18.7]} 38. Rh1 {[%clk 0:02:16.7]} 38... Kg6
{[%clk 0:03:17.8]} 39. Rg1 {[%clk 0:02:11.7]} 39... f6 {[%clk 0:03:16]} 40. f4
{[%clk 0:02:10.4]} 40... Rd7 {[%clk 0:03:13.2]} 41. fxg5 {[%clk 0:02:09.1]}
41... fxg5 {[%clk 0:03:12.3]} 42. Re1 {[%clk 0:02:07.4]} 42... h4 {[%clk
0:03:10.5]} 43. Re6+ {[%clk 0:02:05.9]} 43... Kf5 {[%clk 0:03:09.8]} 44. Re3
{[%clk 0:02:04.1]} 44... Rd2+ {[%clk 0:03:08.2]} 45. Kf3 {[%clk 0:02:00.1]}
45... Rxb2 {[%clk 0:03:06.8]} 46. a4 {[%clk 0:01:57.4]} 46... g4# {[%clk
0:03:06.1]} 0-1

[Event "Live Chess"]
[Site "Chess.com"]
[Date "2023.05.21"]
[Round "-"]
[White "blowerd"]
[Black "whatnot126"]
[Result "0-1"]
[WhiteElo "1359"]
[BlackElo "2051"]
[TimeControl "300"]
[EndTime "18:44:03 PDT"]
[Termination "whatnot126 won on time"]

1. e4 {[%clk 0:04:56]} 1... d6 {[%clk 0:04:59.1]} 2. Nf3 {[%clk 0:04:54.7]} 2...
Nf6 {[%clk 0:04:58.3]} 3. Nc3 {[%clk 0:04:51.4]} 3... g6 {[%clk 0:04:57.5]} 4.
Bc4 {[%clk 0:04:50.6]} 4... Bg7 {[%clk 0:04:55.9]} 5. d4 {[%clk 0:04:49]} 5...
O-O {[%clk 0:04:54.7]} 6. e5 {[%clk 0:04:47.9]} 6... dxe5 {[%clk 0:04:53.4]} 7.
dxe5 {[%clk 0:04:47]} 7... Qxd1+ {[%clk 0:04:53.3]} 8. Nxd1 {[%clk 0:04:38.5]}
8... Ng4 {[%clk 0:04:52]} 9. O-O {[%clk 0:04:33.8]} 9... Nxe5 {[%clk 0:04:50.1]}
10. Nxe5 {[%clk 0:04:30.1]} 10... Bxe5 {[%clk 0:04:50]} 11. Re1 {[%clk
0:04:27.1]} 11... Bf6 {[%clk 0:04:47.4]} 12. Nc3 {[%clk 0:04:22.7]} 12... Bf5
{[%clk 0:04:45.2]} 13. Nd5 {[%clk 0:04:19.7]} 13... Na6 {[%clk 0:04:36.2]} 14.
Bxa6 {[%clk 0:04:10.4]} 14... bxa6 {[%clk 0:04:35.4]} 15. Nxe7+ {[%clk
0:04:09.3]} 15... Kg7 {[%clk 0:04:26.1]} 16. Nxf5+ {[%clk 0:04:07.4]} 16... gxf5
{[%clk 0:04:26]} 17. c3 {[%clk 0:03:56.1]} 17... Rad8 {[%clk 0:04:24]} 18. Bf4
{[%clk 0:03:48]} 18... c5 {[%clk 0:04:18.9]} 19. Rad1 {[%clk 0:03:39.3]} 19...
c4 {[%clk 0:04:17.6]} 20. h3 {[%clk 0:03:05.7]} 20... Rd3 {[%clk 0:04:16.2]} 21.
Rxd3 {[%clk 0:02:33.6]} 21... cxd3 {[%clk 0:04:16.1]} 22. Rd1 {[%clk 0:02:17.2]}
22... Rd8 {[%clk 0:04:15]} 23. Be3 {[%clk 0:02:15.6]} 23... Rd7 {[%clk 0:04:08]}
24. Kf1 {[%clk 0:02:12.8]} 24... Kf8 {[%clk 0:04:05.9]} 25. Bc5+ {[%clk
0:02:02.4]} 25... Ke8 {[%clk 0:04:04.3]} 26. Re1+ {[%clk 0:01:58.8]} 26... Kd8
{[%clk 0:04:03.3]} 27. Rd1 {[%clk 0:01:56.1]} 27... Kc7 {[%clk 0:03:58.9]} 28.
Rd2 {[%clk 0:01:43.6]} 28... Kc6 {[%clk 0:03:56.9]} 29. Be3 {[%clk 0:01:38.4]}
29... Be5 {[%clk 0:03:56.5]} 30. f4 {[%clk 0:01:33.5]} 30... Bb8 {[%clk
0:03:52.1]} 31. Ke1 {[%clk 0:01:28.7]} 31... Re7 {[%clk 0:03:49]} 32. Rxd3
{[%clk 0:01:22.1]} 32... Bxf4 {[%clk 0:03:46.6]} 33. Kd2 {[%clk 0:01:06.5]}
33... Bb8 {[%clk 0:03:40.4]} 34. Bf2 {[%clk 0:00:29.6]} 34... Re8 {[%clk
0:03:38.7]} 35. Bg3 {[%clk 0:00:24.3]} 35... f4 {[%clk 0:03:34]} 36. Bf2 {[%clk
0:00:19.7]} 36... Rg8 {[%clk 0:03:33.6]} 37. g4 {[%clk 0:00:13.8]} 37... fxg3
{[%clk 0:03:32.6]} 38. Bxg3 {[%clk 0:00:12.9]} 38... Rxg3 {[%clk 0:03:31.4]} 39.
Rxg3 {[%clk 0:00:11]} 39... Bxg3 {[%clk 0:03:31.3]} 40. Kd3 {[%clk 0:00:09.6]}
40... Kd5 {[%clk 0:03:30]} 41. c4+ {[%clk 0:00:08]} 41... Kc5 {[%clk 0:03:29.2]}
42. b3 {[%clk 0:00:06.6]} 42... Be5 {[%clk 0:03:26.3]} 43. Ke4 {[%clk
0:00:05.6]} 43... Bb2 {[%clk 0:03:25.4]} 44. Kf5 {[%clk 0:00:04.6]} 44... Kb4
{[%clk 0:03:21]} 45. Ke4 {[%clk 0:00:03.6]} 45... Ka3 {[%clk 0:03:20.1]} 46. Kd3
{[%clk 0:00:03.3]} 46... Kxa2 {[%clk 0:03:19.3]} 47. Kc2 {[%clk 0:00:02.6]}
47... Be5 {[%clk 0:03:17.2]} 48. b4 {[%clk 0:00:01.7]} 48... Ka3 {[%clk
0:03:16.3]} 0-1

[Event "Live Chess"]
[Site "Chess.com"]
[Date "2023.05.21"]
[Round "-"]
[White "worldchessleaguelive"]
[Black "domrobson"]
[Result "0-1"]
[WhiteElo "1386"]
[BlackElo "1757"]
[TimeControl "300"]
[EndTime "18:44:18 PDT"]
[Termination "domrobson won by resignation"]

1. d4 {[%clk 0:04:58.2]} 1... Nf6 {[%clk 0:04:57.6]} 2. Bf4 {[%clk 0:04:56.4]}
2... d5 {[%clk 0:04:56.6]} 3. Nf3 {[%clk 0:04:55.6]} 3... e6 {[%clk 0:04:55.5]}
4. e3 {[%clk 0:04:53.2]} 4... c5 {[%clk 0:04:54.5]} 5. c3 {[%clk 0:04:51.6]}
5... Nc6 {[%clk 0:04:52.8]} 6. Bb5 {[%clk 0:04:49.2]} 6... Bd7 {[%clk
0:04:51.8]} 7. Bxc6 {[%clk 0:04:48.2]} 7... Bxc6 {[%clk 0:04:49.8]} 8. Ne5
{[%clk 0:04:47.7]} 8... Qb6 {[%clk 0:04:47.5]} 9. Nxc6 {[%clk 0:04:46.4]} 9...
bxc6 {[%clk 0:04:45.9]} 10. Qb3 {[%clk 0:04:44.3]} 10... Nh5 {[%clk 0:04:43.3]}
11. Bg3 {[%clk 0:04:39.9]} 11... Nxg3 {[%clk 0:04:42]} 12. hxg3 {[%clk
0:04:38.1]} 12... Rb8 {[%clk 0:04:40.5]} 13. Nd2 {[%clk 0:04:36.4]} 13... c4
{[%clk 0:04:38.9]} 14. Qxb6 {[%clk 0:04:31.3]} 14... Rxb6 {[%clk 0:04:37.4]} 15.
O-O-O {[%clk 0:04:30.2]} 15... Be7 {[%clk 0:04:35.9]} 16. e4 {[%clk 0:04:26.9]}
16... h6 {[%clk 0:04:33.9]} 17. e5 {[%clk 0:04:22.9]} 17... Kd7 {[%clk
0:04:30.8]} 18. f4 {[%clk 0:04:21.6]} 18... Rhb8 {[%clk 0:04:28.5]} 19. b4
{[%clk 0:04:16.4]} 19... cxb3 {[%clk 0:04:27.1]} 20. axb3 {[%clk 0:04:10.2]}
20... a5 {[%clk 0:04:26]} 21. Kc2 {[%clk 0:04:08.4]} 21... Ra8 {[%clk
0:04:23.1]} 22. Ra1 {[%clk 0:04:06.5]} 22... Rba6 {[%clk 0:04:19.7]} 23. Ra4
{[%clk 0:04:04]} 23... Bd8 {[%clk 0:04:10.7]} 24. Rha1 {[%clk 0:04:02.2]} 24...
Ke7 {[%clk 0:04:07.1]} 25. Nf3 {[%clk 0:03:55.4]} 25... Rb8 {[%clk 0:04:04.6]}
26. g4 {[%clk 0:03:49.1]} 26... Rab6 {[%clk 0:04:03.3]} 27. Rb1 {[%clk
0:03:42.4]} 27... f6 {[%clk 0:03:57.1]} 28. Nh4 {[%clk 0:03:30.3]} 28... Kf7
{[%clk 0:03:54.3]} 29. Rxa5 {[%clk 0:03:18.1]} 29... fxe5 {[%clk 0:03:53.1]} 30.
Ra7+ {[%clk 0:03:14]} 30... R8b7 {[%clk 0:03:49.8]} 31. Rxb7+ {[%clk 0:03:12.2]}
31... Rxb7 {[%clk 0:03:48.5]} 32. fxe5 {[%clk 0:03:06.6]} 32... Bxh4 {[%clk
0:03:47.2]} 33. Rf1+ {[%clk 0:02:40.4]} 33... Kg8 {[%clk 0:03:41.9]} 34. Rf3
{[%clk 0:02:37.6]} 34... Bg5 {[%clk 0:03:40.6]} 35. c4 {[%clk 0:02:34.8]} 35...
Rf7 {[%clk 0:03:38.6]} 36. cxd5 {[%clk 0:02:31.3]} 36... cxd5 {[%clk 0:03:36.6]}
37. b4 {[%clk 0:02:24.3]} 37... Rxf3 {[%clk 0:03:33.5]} 38. gxf3 {[%clk
0:02:22.5]} 38... Kf8 {[%clk 0:03:33.2]} 39. b5 {[%clk 0:02:17.2]} 39... Ke8
{[%clk 0:03:30.7]} 40. Kb3 {[%clk 0:02:15.9]} 40... Kd7 {[%clk 0:03:29.6]} 41.
Kb4 {[%clk 0:02:13.3]} 41... Kc7 {[%clk 0:03:27.3]} 42. Ka5 {[%clk 0:02:10]}
42... Kb7 {[%clk 0:03:26.1]} 43. b6 {[%clk 0:02:05.3]} 43... Be3 {[%clk
0:03:25.1]} 0-1

[Event "Live Chess"]
[Site "Chess.com"]
[Date "2023.05.21"]
[Round "-"]
[White "IgorSchukin"]
[Black "therealab0ne"]
[Result "1-0"]
[WhiteElo "1783"]
[BlackElo "716"]
[TimeControl "300"]
[EndTime "18:44:32 PDT"]
[Termination "IgorSchukin won by resignation"]

1. e4 {[%clk 0:04:58.8]} 1... c5 {[%clk 0:04:59.5]} 2. a3 {[%clk 0:04:57.4]}
2... Nc6 {[%clk 0:04:58.8]} 3. b4 {[%clk 0:04:56.4]} 3... cxb4 {[%clk
0:04:56.1]} 4. axb4 {[%clk 0:04:55.9]} 4... Nxb4 {[%clk 0:04:55.1]} 5. c3 {[%clk
0:04:54.9]} 5... Nc6 {[%clk 0:04:54]} 6. d4 {[%clk 0:04:54.4]} 6... e6 {[%clk
0:04:46]} 7. d5 {[%clk 0:04:50.5]} 7... exd5 {[%clk 0:04:45]} 8. exd5 {[%clk
0:04:49.6]} 8... Nce7 {[%clk 0:04:24]} 9. Na3 {[%clk 0:04:40.2]} 9... b6 {[%clk
0:04:19.9]} 10. Bf4 {[%clk 0:04:36.8]} 10... Bb7 {[%clk 0:04:18.1]} 11. Nb5
{[%clk 0:04:29.2]} 11... Nxd5 {[%clk 0:04:14.7]} 12. Bd6 {[%clk 0:04:02.6]}
12... Bxd6 {[%clk 0:03:50]} 13. Nxd6+ {[%clk 0:03:56.4]} 13... Ke7 {[%clk
0:03:49.2]} 14. Nxb7 {[%clk 0:03:54.9]} 14... Qb8 {[%clk 0:03:38.2]} 15. Qxd5
{[%clk 0:03:52]} 15... Nf6 {[%clk 0:03:34.3]} 16. Qf3 {[%clk 0:03:40.3]} 16...
Re8 {[%clk 0:03:16.6]} 17. Bd3 {[%clk 0:03:22.6]} 17... Kf8+ {[%clk 0:03:11.9]}
18. Ne2 {[%clk 0:03:21]} 18... Qc8 {[%clk 0:02:58.9]} 19. O-O {[%clk 0:03:16.9]}
19... Rb8 {[%clk 0:02:55.2]} 20. Nd6 {[%clk 0:03:14.8]} 20... Qc6 {[%clk
0:02:42]} 21. Nxe8 {[%clk 0:03:11.2]} 21... Rxe8 {[%clk 0:02:39.5]} 22. Qxc6
{[%clk 0:03:07.4]} 22... dxc6 {[%clk 0:02:38.8]} 23. Rfe1 {[%clk 0:03:05]} 23...
Nd5 {[%clk 0:02:26.8]} 24. g3 {[%clk 0:02:59.8]} 24... g6 {[%clk 0:02:25.9]} 25.
Nf4 {[%clk 0:02:55.5]} 25... Nxf4 {[%clk 0:02:24.6]} 26. Rxe8+ {[%clk
0:02:53.7]} 26... Kxe8 {[%clk 0:02:23.3]} 27. gxf4 {[%clk 0:02:52.9]} 27... Kd7
{[%clk 0:02:22.2]} 28. Rxa7+ {[%clk 0:02:50.3]} 28... Kd6 {[%clk 0:02:21.2]} 29.
Rxf7 {[%clk 0:02:49.2]} 29... b5 {[%clk 0:02:20.6]} 30. Rxh7 {[%clk 0:02:48.2]}
30... c5 {[%clk 0:02:19.2]} 31. Bxb5 {[%clk 0:02:46.4]} 31... Kd5 {[%clk
0:02:17.8]} 32. f3 {[%clk 0:02:42.4]} 32... g5 {[%clk 0:02:13.7]} 1-0